{"text_format":"1","workbook":"xlsx","n_sheets":2,"sheets":["Specifikace předmětu - rozpočet","#Figury"],"not_rendered":{"charts":0,"images":0,"macros":1,"external_links":0,"defined_names":0,"comments":0,"pivot_tables":0},"unopened":[],"bounds":{"document_bytes":16777216,"sheet_cells":100000,"rows_first":2000,"rows_last":500,"rows_between":2000,"halvings":0,"cell_chars":16384,"cell_head_chars":4096},"cells_cut":0,"cells_raw":0,"read":"whole","date_system":"1900"}

{"sheet":"Specifikace předmětu - rozpočet","index":0,"n_rows":22,"n_cols":11,"rows_kept":22,"cut":false,"hidden":false,"merged":[]}
["P.Č.","Název položky","Popis / minimální technické parametry","Výrobce a označení nabízeného plnění","Nabízený produkt splňuje veškeré požadované technické podmínky - ANO/NE","MJ","Množství celkem","Cena jednotková bez DPH","Cena celkem bez DPH","Sazba DPH","Cena celkem s DPH"]
[null,null,"Serverové vybavení"]
[1,"Licence VSR - 6 Wind","Turbo Router - Věčná licence: All in-one Edition - x86 - Active - 100G, včetně podpory:  All-in-one Edition - x86 - Active - 100G Standard  support - 1 Year from Delivery Date\n",null,"ANO/NE","ks",2,null,{"$f":"G3*H3","v":0},21,{"$f":"I3*1.21","v":0}]
[2,"Server 1","rackmount\n2x CPU 16C/32T 2.9G 24M\nDisk M.2 256GB \nRam 4x8GB\n2x 100Gb",null,"ANO/NE","ks",1,null,0,21,0]
[3,"Páteřní switch","Hlavní vlastnosti:\n10GE managovatelný L3+ MPLS switch\nAdvanced L3+ funkcionality - MPLS, OSPF, BGP, VRP, ISIS, IGMP, VXLAN, NetStream, ECA, Telemetry, iPCA, IEEE1588v2\nIntegrovaný Wi-Fi AP controller\n19\" Rackmount s fixními porty\nVysokorychlostní porty QSFP28 - 100GE/40GE\nPodpora iStack (intelligent Stack)\nPodpora SVF\nDual hot-swap power supply\nSwitching Capacity: 2,4 Tbps\nForwarding capacity: 480 Mpps \nPorty:\n48x 10GE SFP+ port\n6x 100GE QSFP28 port\n1x RJ-45 serial console port\n1x Ethernet management port 10/100/1000 Mbps (Out-of-band management)\n1x USB port\n1x SSD M.2 slot (for future use)\nManagement:\nSSH\nSNMP v1/v2c/v3\nSíťové funkcionality:\nIGMP Snooping  v1/v2/v3\n- Jumbo frame\n- 128k MAC\n- 4094 VLAN\n- 140K ARP entries, 192K FIBv4 entries, 80K FIBv6 entries, 6K ACLs, 1M–1 NetStream entries,\n- 4095 VXLAN BDs, 16K VXLAN IPv4 tunnels, 4K VXLAN IPv6 tunnels\n- MPLS, VPLS,RIP, RIPing OSPF, BGP, VRP, ISIS, IGMP, MLD a PIM\n- V XLAN\nNapájení:\n1+1, redundantní \nSpotřeba: max.291 W\nRozměry:\n442 x 420 x 43,6 mm, výška 1U",null,"ANO/NE","ks",1,null,0,21,0]
[4,"Server 2","rackmount\n2x CPU Počet jader: 16/32T Frekvence: 2.80 GHz, frekvence turba: 3.20 GHz\nRAM 64GB \nDisky 2x480GB SSD + 2x4TB disk / HW raid H730 RAID/\niDRAC 9 Ent./\nsíť karta Intel X710 2x10Gb DA SFP+\n2x750W\nZáruka 3Y Basic On-Site",null,"ANO/NE","ks",1,null,0,21,0]
[5,"Tablet","Tablet - displej 11\" FullHD 2000 × 1200 IPS,  RAM 4 GB, interní paměť 125 GB, paměťová karta až 256 GB, WiFi, Bluetooth, GPS, zadní fotoaparát 13 Mpx, přední fotoaparát 8 Mpx, USB-C, rychlé nabíjení 20W, baterie 7700 mAh,",null,"ANO/NE","ks",20,null,0,21,0]
[6,"Switch","L2 + L3 Switch - 48x 1Gb port, 4x SFP+ port, 2x QSFP port, RM\n",null,"ANO/NE","ks",8,null,0,21,0]
[7,"PoE Switch","L2 + L3 PoE Switch - 24x 1Gb port, 4x SFP+ port, 24x PoE out (24,48V), 450W, RM\n",null,"ANO/NE","ks",8,null,0,21,0]
[8,"IP Kamera 1","2 Megapixelová  IP kamera - 2.8mm / 107°, IR přísvit do 30m, PoE, podpora P2P, ONVIF podpora, vestavěný mikrofon, Základní analýza obrazu podporující inteligentní funkce - detekce překročení hranice, detekce narušení zóny, detekce pohybu v obraze, 1/2.8 CMOS, WDR, IP67, DC12V / 400mA, 460g",null,"ANO/NE","ks",117,null,0,21,0]
[9,"IP Kamera 2","bílá - H.265 - venkovní IP kamera s IR - 8 Megapixel - 3840 x 2160, ICR motorický autofokus zoom 2.8mm / 96° - 12mm / 32°, Pokročilá analýza obrazu podporující inteligentní funkce - detekce překročení hranice, detekce narušení zóny, detekce pohybu v obraze, detekce lidské tváře, IR přísvit do 50m, PoE, Audio, 1/2.8 CMOS, IP67, DC12V",null,"ANO/NE","ks",53,null,{"$f":"G11*H11","v":0},21,{"$f":"I11*1.21","v":0}]
[10,"NVR - nahrávací zařízení","IP DVR rekordér pro 64 IP kamer s podporou inteligentní videoanalýzy. NVR rekordér nahrává v rozlišení záznamu 8MPix / 6Mpix / 5Mpix / 4MPix / 3MPix / 1080P / 720P / D1. Pro zajištění kompatibility s IP kamerami jiných ýrobců podporuje NVR rekordér protokol ONVIF. Rekordér také umožňuje nahrávat zvuk z připojených IP kamer a obousměrné audio hovory. Stabilitu systému a dlouhodobý provoz IP rekordéru bez výpadků a nutnosti pravidelných restartů zajišťuje operační systém. Pro záznam videa je možné nainstalovat až 8x interní HDD (není součástí). NVR rekordér podporuje vytvoření RAID pole na instalovaných HDD. Dlouhý záznam videa umožňuje použitá komprese H.265 nebo H.264. NVR rekordér je napájen z integrovaného ATX zdroje AC 230V. Rozměry IP rekordéru jsou 430(š) x 450(h) x 90 mm (v). ",null,"ANO/NE","ks",6,null,0,21,0]
[11,"HDD pro NVR","Harddisk SATA 8 TB, speciální HDD pro DVR\n",null,"ANO/NE","ks",7,null,0,21,0]
[12,"Monitor","LCD monitor Full HD 1920 × 1080, IPS, 16:9, 5 ms, 75Hz, 8bit, 250 cd/m2, HDMI 1.4, HDMI 2.0, VGA, VESA",null,"ANO/NE","ks",54,null,{"$f":"G14*H14","v":0},21,{"$f":"I14*1.21","v":0}]
[13,"Počítač pro 2 monitory","Počítač AVT 500GB NVMe SSD/Operační systém - Procesor minimálně 8 jádrový, 16 vláken, 3,8GHz s Boostem, socked AMD AM4/ 16GB DDR4 RAM/ ",null,"ANO/NE","ks",20,null,{"$f":"G15*H15","v":0},21,{"$f":"I15*1.21","v":0}]
[14,"VOIP telefon","IP telefon bezdrátový, grafický 7\" displej, podpora 16 SIP účtů, PoE, 2× RJ-45, adresář kontaktů, budík, zrychlená volba, indikace zmeškaných událostí, kalendář, zobrazení čísla volajícího, dotykový displej, Bluetooth, WiFi, operační systém",null,"ANO/NE","ks",39,null,{"$f":"G16*H16","v":0},21,{"$f":"I16*1.21","v":0}]
[15,"Přístupový systém - obličejový","přístupový terminál s rozpoznáváním obličeje; 4\" dotykový displej\nelektrický otvírač do interiérových dveří, včetně příslušenství\nbezpečnostní hliníkové dveřní kování koule/klika s hranatým štítem\nnapájecí zdroj 12V/2A\ninstalační příslušenství, včetně kabeláže",null,"ANO/NE","ks",36,null,{"$f":"G17*H17","v":0},21,{"$f":"I17*1.21","v":0}]
[16,"Server 3","rackmount\n1x CPU Počet jader: 4 Frekvence: 2.80 GHz, frekvence turba: 4.5 GHz \nRAM 16GB, \nDisky 2x 480GB SSD hot-plug, HW raid\n2x GLAN, \nZáruka 3Y Basic on-site\nMS Windows Server 2022 Standard*\nMS Remote Desktop Services User CAL - pro Windows Server 2022 (5-pack)* \n*Zadavatel uvádí obchodní název z důvodu vymezení obecně srozumitelného standardu. Účastníci mohou nabídnout i jiné kvalitativně rovnocenné řešení.",null,"ANO/NE","ks",1,null,{"$f":"G18*H18","v":0},21,{"$f":"I18*1.21","v":0}]
[null,null,"Práce"]
[18,"Práce - Server 2","Práce – Instalace a nastavení operačního systému",null,"ANO/NE","ks",1,null,{"$f":"G20*H20","v":0},21,{"$f":"I20*1.21","v":0}]
[18,"Práce - Server 3","Instalace a nastavení serveru",null,"ANO/NE","ks",1,null,{"$f":"G21*H21","v":0},21,{"$f":"I21*1.21","v":0}]
[null,null,"Celkem bez DPH",null,null,null,null,null,{"$f":"SUM(I3:I21)","v":0}]

{"sheet":"#Figury","index":1,"n_rows":0,"n_cols":0,"rows_kept":0,"cut":false,"hidden":true,"merged":[]}